bitfinex-derivatives/quotes_ETHF0:USTF0_20260303
["timestamp","ask_amount","ask_price","bid_price","bid_amount"]
[1772549576704,6.99992574,1942.0,1940.7,6.98666588]
[1772549577295,16.98760735,1941.5,1940.7,0.00564962]
[1772549577604,7.80060699,1941.2,1940.4,6.748]
[1772549578199,7.54299699,1941.2,1940.2,6.98101626]
[1772549578505,3.10792036,1941.5,1940.3,6.98101626]
[1772549578506,7.54299699,1941.4,1940.3,6.98101626]
[1772549578704,7.80059699,1941.3,1940.4,6.748]
[1772549579105,7.80059699,1941.3,1940.5,6.98101626]
[1772549579302,4.40933781,1941.8,1940.5,6.98101626]
[1772549579506,0.25754,1941.8,1940.5,6.98101626]
[1772549579706,7.80048699,1942.1,1940.5,6.98101626]
[1772549579907,6.75639957,1942.0,1940.7,6.98101626]
[1772549580108,6.75639957,1942.0,1940.9,6.98101626]
[1772549580402,0.25747,1942.3,1941.1,6.98101626]
[1772549580701,0.25747,1942.3,1941.3,6.98101626]
[1772549580907,0.25747,1942.3,1941.5,6.98101626]
[1772549581108,0.25747,1942.3,1941.6,6.749]
[1772549581408,0.25747,1942.3,1941.2,13.73001626]
[1772549581409,7.80048699,1942.1,1941.2,13.73001626]
[1772549581603,0.25749,1942.1,1941.3,6.98101626]
[1772549581803,7.54739085,1942.4,1941.3,6.98101626]
[1772549581998,6.75768571,1942.3,1941.3,6.98101626]
[1772549582201,0.00439386,1942.4,1941.3,6.98101626]
[1772549582399,10.90827735,1943.1,1941.5,6.98101626]
[1772549582807,7.80035699,1943.1,1941.5,6.98101626]
[1772549583003,7.54299699,1943.4,1941.7,6.98101626]
[1772549583300,0.00389217,1943.4,1942.1,6.98101626]
[1772549583504,0.00389217,1943.4,1942.5,6.98101626]
[1772549583706,0.00389217,1943.4,1942.4,0.25745]
[1772549583707,7.80022699,1944.1,1942.7,6.98101626]
[1772549584105,7.80022699,1944.1,1942.9,6.98101626]
[1772549584305,7.80022699,1944.1,1942.8,6.749]
[1772549584306,7.54299699,1943.7,1942.6,6.98101626]
[1772549584504,7.54299699,1943.7,1942.7,13.72901626]
[1772549584702,0.00500337,1943.7,1942.8,6.98101626]
[1772549584907,0.00500337,1943.7,1943.0,6.98101626]
[1772549585506,0.25721,1944.3,1943.0,6.98101626]
[1772549585705,0.25721,1944.3,1942.7,0.00368716]
[1772549585706,7.54299699,1944.2,1943.2,6.98101626]
[1772549585901,7.54299699,1944.2,1943.3,13.72901626]
[1772549586107,0.25721,1944.3,1943.4,6.98101626]
[1772549586510,7.54299699,1943.6,1942.7,0.00368716]
[1772549586705,6.32935,1943.7,1942.2,6.98101626]
[1772549586706,6.58856,1943.1,1942.2,6.98101626]
[1772549586912,10.65091735,1943.0,1942.2,6.98101626]
[1772549587108,3.10792036,1943.0,1942.2,6.98101626]
[1772549587510,0.25736,1943.1,1942.2,6.98101626]
[1772549587706,7.80035699,1943.1,1942.2,13.73336722]
[1772549587909,14.13153699,1943.1,1942.2,6.98636722]
[1772549588113,0.25739,1942.9,1942.2,13.73336722]
[1772549588310,0.00517245,1942.9,1942.3,6.98101626]
[1772549588509,7.54299699,1942.7,1941.9,6.747]
[1772549588710,7.80044699,1942.4,1941.0,6.98101626]
[1772549588910,7.80044699,1942.4,1941.2,6.98101626]
[1772549589114,7.54299699,1942.1,1941.3,6.747]
[1772549589417,7.54299699,1942.1,1941.2,6.98101626]
[1772549589607,7.54299699,1942.1,1941.2,6.98576298]
[1772549589812,0.25751,1942.0,1941.3,6.747]
[1772549590110,3.10792036,1942.2,1941.2,6.98576298]
[1772549590307,7.54299699,1942.4,1941.5,6.98101626]
[1772549590512,0.25744,1942.5,1941.6,6.98101626]
[1772549590710,7.54299699,1942.7,1941.6,6.98101626]
[1772549591113,7.80042699,1942.6,1941.6,6.98101626]
[1772549591512,7.80042699,1942.6,1941.7,13.72801626]
[1772549591721,0.00517245,1942.9,1941.8,6.98101626]
[1772549592016,10.65091735,1943.8,1942.0,6.98101626]
[1772549592316,7.80022699,1944.1,1942.2,6.98101626]
[1772549592519,7.80022699,1944.1,1942.4,6.98101626]
[1772549593013,0.00563456,1944.1,1942.6,6.98101626]
[1772549593213,0.00563456,1944.1,1942.6,6.9850243]
[1772549593615,0.00563456,1944.1,1942.8,6.98101626]
[1772549593814,0.00563456,1944.1,1942.7,6.748]
[1772549593815,0.00563456,1944.1,1943.0,6.98101626]
[1772549594119,7.54299699,1945.1,1943.6,6.98101626]
[1772549594312,10.65091735,1945.4,1943.8,6.98101626]
[1772549594509,7.54299699,1945.2,1944.0,6.98101626]
[1772549594715,7.80008699,1945.1,1944.2,6.98101626]
[1772549594914,7.80012699,1944.8,1943.8,6.747]
[1772549595114,7.80509588,1944.8,1943.8,13.73329995]
[1772549595418,7.54299699,1944.5,1943.4,6.98101626]
[1772549595719,7.54299699,1944.5,1943.6,6.98101626]
[1772549595922,7.54299699,1944.5,1943.6,6.747]
[1772549596217,3.10792036,1944.6,1942.4,6.33339]
[1772549596218,10.65091735,1944.6,1943.7,13.72701626]
[1772549596410,0.26209889,1944.8,1943.8,6.98101626]
[1772549597120,0.00496889,1944.8,1943.8,6.98101626]
[1772549597413,7.5352649,1945.4,1943.7,0.0053014]
[1772549597414,7.54299699,1945.9,1944.2,6.98101626]
[1772549597615,7.54299699,1946.2,1944.6,6.98101626]
[1772549597816,7.54299699,1946.2,1944.8,6.98101626]
[1772549598116,7.45125416,1945.7,1944.8,6.98101626]
[1772549598315,7.4558888,1945.7,1944.8,6.98101626]
[1772549598515,7.70828416,1945.6,1944.7,6.745]
[1772549598821,7.45125416,1945.3,1944.2,6.94344145]
[1772549599016,7.45125416,1945.3,1944.3,6.745]
[1772549599320,6.94833182,1945.6,1944.4,7.06540265]
[1772549599918,6.94833182,1945.5,1944.6,7.06540265]
[1772549600120,0.00463464,1945.7,1944.7,7.06540265]
[1772549600513,6.94833182,1946.8,1945.0,7.06540265]
[1772549600722,6.94833182,1946.8,1945.2,7.06540265]
[1772549600921,7.20524182,1946.5,1945.4,7.06540265]
[1772549601321,7.20524182,1946.5,1945.6,7.06540265]
[1772549601516,0.0050348,1946.5,1945.7,13.80940265]
[1772549601722,0.0050348,1946.5,1945.8,13.80940265]
[1772549601921,0.0050348,1946.5,1945.9,7.06540265]
[1772549602117,3.10792036,1947.4,1945.9,7.06540265]
[1772549602324,6.94833182,1947.9,1945.9,7.06540265]
[1772549602625,6.94833182,1948.1,1946.1,7.06540265]
[1772549602923,3.10792036,1948.2,1946.7,7.06540265]
[1772549603120,0.00516627,1948.2,1946.9,6.3188]
[1772549603419,6.94833182,1949.0,1947.1,7.06540265]
[1772549603619,6.94833182,1949.3,1947.2,7.06540265]
[1772549603820,6.94833182,1949.9,1947.9,7.06540265]
[1772549604021,13.51196182,1950.5,1948.3,7.06540265]
[1772549604321,6.30858,1950.1,1948.8,7.06540265]
[1772549604518,6.30889,1950.0,1948.8,7.06540265]
[1772549604724,6.3094,1949.8,1948.8,7.06540265]
[1772549605030,6.3094,1949.8,1948.5,7.06540265]
[1772549605031,6.94833182,1949.5,1948.5,7.06540265]
[1772549605327,6.94833182,1949.4,1948.5,7.06540265]
[1772549605524,6.94833182,1949.7,1948.5,7.06540265]
[1772549605723,6.94833182,1950.4,1948.5,7.06540265]
[1772549605921,6.94833182,1950.2,1948.7,7.06540265]
[1772549606118,0.00642135,1950.5,1949.0,7.06540265]
[1772549606325,6.30779,1950.3,1949.2,7.06540265]
[1772549606524,6.94833182,1950.4,1949.3,7.06540265]
[1772549606721,6.94833182,1950.4,1947.9,6.31544]
[1772549606722,13.25741182,1950.0,1948.4,7.06540265]
[1772549607035,6.94833182,1949.9,1948.6,7.06540265]
[1772549607324,0.00642135,1950.5,1949.0,7.06540265]
[1772549607525,0.00642135,1950.5,1949.2,7.06540265]
[1772549607828,0.00642135,1950.5,1949.4,7.06540265]
[1772549608022,0.00642135,1950.5,1949.6,7.06540265]
[1772549608225,6.94833182,1949.9,1948.5,7.06540265]
[1772549608425,6.30979,1949.7,1948.7,7.06540265]
[1772549608624,0.25647,1949.9,1948.7,7.06540265]
[1772549609019,0.25649,1949.7,1948.7,7.06540265]
[1772549609422,7.20482182,1949.7,1948.7,7.06540265]
[1772549609621,13.25871182,1949.5,1948.3,7.0696617]
[1772549609931,10.05625218,1949.2,1948.3,0.00425905]
[1772549610123,3.10792036,1949.6,1948.3,7.0696617]
[1772549610325,13.51396182,1949.9,1948.3,7.0696617]
[1772549610531,13.51590182,1949.3,1948.3,7.0696617]
[1772549610730,10.31271218,1950.0,1948.5,7.06540265]
[1772549611029,6.31136,1949.2,1948.3,0.00425905]
[1772549611626,0.25654,1949.3,1948.3,0.00425905]
[1772549611827,0.25654,1949.3,1948.3,7.0696617]
[1772549612033,3.10792036,1949.2,1948.3,7.0696617]
[1772549612228,7.20490182,1949.1,1948.3,0.00425905]
[1772549612433,13.30025,1949.1,1948.0,7.06540265]
[1772549612629,6.94833182,1949.0,1948.0,7.06540265]
[1772549613128,6.98857,1949.1,1948.0,7.06540265]
[1772549613331,6.731,1949.4,1948.0,7.06540265]
[1772549613529,0.00632653,1949.1,1948.0,7.07204302]
[1772549614028,0.00632653,1949.1,1948.0,0.00664037]
[1772549614029,13.51799182,1948.7,1948.0,0.00664037]
[1772549614230,13.51799182,1948.7,1946.4,0.25692]
[1772549614231,13.51864182,1948.5,1946.5,7.06540265]
[1772549614529,13.51864182,1948.5,1945.9,6.32199]
[1772549614530,6.94833182,1948.1,1946.7,7.06540265]
[1772549614732,3.10792036,1948.0,1946.9,7.06540265]
[1772549614931,3.10792036,1948.0,1945.7,0.25701]
[1772549614932,13.67933182,1948.4,1947.1,7.06540265]
[1772549615138,13.67933182,1948.4,1947.3,7.06540265]
[1772549615331,6.94833182,1948.2,1947.0,7.07000838]
[1772549616035,6.94833182,1947.9,1947.0,7.07000838]
[1772549616232,6.731,1948.4,1947.0,7.07000838]
[1772549616631,10.05625218,1948.5,1947.0,7.07000838]
[1772549616939,10.05625218,1948.5,1947.2,7.06540265]
[1772549617131,6.94833182,1948.4,1947.3,6.73]
[1772549617331,20.24932182,1948.3,1947.3,7.06540265]
[1772549617536,13.93500182,1948.3,1947.3,7.06540265]
[1772549618030,0.2566,1948.9,1947.3,7.06540265]
[1772549618231,0.25662,1948.7,1947.3,7.06540265]
[1772549618432,13.51862182,1948.5,1947.4,7.06540265]
[1772549618631,6.94833182,1948.4,1947.4,7.06540265]
[1772549618836,0.25667,1948.3,1947.4,7.06540265]
[1772549619032,6.73,1948.6,1947.4,7.06540265]
[1772549619234,7.20493182,1948.9,1947.4,7.06540265]
[1772549619839,7.20495182,1948.7,1947.4,7.06540265]
[1772549620237,7.20498182,1948.5,1947.4,13.79540265]
[1772549620433,0.25665,1948.5,1947.5,7.06540265]
[1772549620730,6.73,1949.0,1947.5,7.06540265]
[1772549620931,13.67833182,1949.0,1947.5,7.06540265]
[1772549621136,0.25662,1948.7,1947.7,7.06540265]
[1772549621336,6.94833182,1948.4,1947.3,7.06540265]
[1772549621538,0.25667,1948.3,1947.3,7.06540265]
[1772549621737,6.94833182,1948.2,1947.0,13.80000838]
[1772549621940,0.25667,1948.3,1947.1,7.06540265]
[1772549622134,0.25667,1948.3,1947.1,13.79540265]
[1772549622333,7.20500182,1948.3,1947.2,7.06540265]
[1772549623038,7.20493182,1948.9,1947.2,7.06540265]
[1772549623342,0.00632653,1949.1,1947.7,7.06540265]
[1772549623539,0.00632653,1949.1,1948.1,7.06540265]
[1772549623837,13.67833182,1949.8,1948.1,7.06540265]
[1772549624241,13.67833182,1949.8,1947.4,6.31717]
[1772549624242,6.94833182,1949.4,1948.3,7.06540265]
[1772549624645,0.25651,1949.5,1948.3,7.06540265]
[1772549624942,0.00544696,1949.4,1948.5,7.06540265]
[1772549625236,0.00544696,1949.4,1948.7,7.06540265]
[1772549626138,0.25645,1950.0,1948.7,7.06540265]
[1772549626338,0.25645,1950.0,1948.9,7.06540265]
[1772549626541,6.73,1950.1,1949.0,7.06540265]
[1772549626744,0.5,1950.3,1949.0,7.06540265]
[1772549626941,0.5,1950.3,1949.2,7.06540265]
[1772549627442,6.729,1950.9,1949.4,7.06540265]
[1772549627643,0.25632,1951.1,1949.6,7.06540265]
[1772549627842,0.25633,1950.9,1949.8,6.80407281]
[1772549628038,7.4526417,1950.9,1949.9,6.80407281]
[1772549628245,0.25633,1950.9,1949.9,6.80407281]
[1772549628541,7.4525717,1951.5,1949.9,6.80407281]
[1772549628749,7.13292887,1951.4,1949.9,6.80997027]
[1772549628942,0.25633,1951.0,1950.0,6.80407281]
[1772549629349,0.25639,1950.5,1949.9,7.46e-06]
[1772549629550,18.26049531,1951.1,1949.7,6.80407281]
[1772549629844,0.2564,1950.4,1948.4,6.80407281]
[1772549630043,13.67744573,1950.1,1948.6,6.80407281]
[1772549630244,13.67726573,1950.1,1948.6,6.80407281]
[1772549630446,0.2565,1949.6,1948.8,6.80407281]
[1772549630746,0.2565,1949.6,1948.5,6.80407281]
[1772549630747,20.27770861,1949.6,1948.5,6.80407281]
[1772549630946,0.2565,1949.6,1948.5,6.80407281]
[1772549631646,20.27179968,1949.6,1948.5,6.80407281]
[1772549631944,0.25653,1949.4,1948.5,6.80407281]
[1772549632160,6.69417074,1949.5,1948.5,6.80407281]
[1772549632348,0.00490266,1950.1,1948.5,6.80407281]
[1772549632744,0.00490266,1950.1,1948.7,6.80407281]
[1772549633144,0.00490266,1950.1,1948.2,8.74158741]
[1772549633145,0.00490266,1950.1,1948.9,6.80407281]
[1772549633350,0.00490266,1950.1,1949.1,6.80407281]
[1772549633753,0.00490266,1950.1,1949.1,13.53007281]
[1772549633949,0.25645,1950.0,1949.1,13.53007281]
[1772549634252,0.00490266,1950.1,1949.1,13.53007281]
[1772549634253,0.00490266,1950.1,1949.2,6.80407281]
[1772549634853,6.95091922,1950.3,1949.2,6.80407281]
[1772549635053,0.25642,1950.2,1949.2,6.80407281]
[1772549635254,0.25642,1950.2,1949.2,13.53007281]
[1772549635552,0.25642,1950.2,1949.3,6.80407281]
[1772549636056,0.26007407,1950.2,1949.3,6.80407281]
[1772549636351,0.00365407,1950.2,1949.3,6.80407281]
[1772549636751,6.92351199,1950.2,1948.5,6.80407281]
[1772549636951,6.92351199,1950.2,1948.7,6.80407281]
[1772549637156,0.00365407,1950.2,1948.9,6.80407281]
[1772549637357,0.00365407,1950.2,1949.1,6.80407281]
[1772549637751,0.00365407,1950.2,1949.2,6.80407281]
[1772549638555,0.00365407,1950.2,1949.4,6.80407281]
[1772549638961,0.25644,1950.1,1949.2,6.725]
[1772549639162,0.00365407,1950.2,1949.2,6.80407281]
[1772549639362,4.18935704,1951.0,1949.2,7.06062281]
[1772549639665,11.65750147,1950.9,1949.4,6.80407281]
[1772549639863,6.89229959,1950.9,1949.4,6.80407281]
[1772549640163,0.25634,1950.8,1949.6,6.80407281]
[1772549640360,0.25637,1950.6,1949.6,6.80407281]
[1772549640662,7.1299908,1950.4,1949.6,6.81068089]
[1772549641258,0.2564,1950.4,1949.6,6.81068089]
[1772549641454,6.724,1950.5,1949.6,6.81068089]
[1772549641659,6.724,1950.5,1949.7,6.80407281]
[1772549641864,0.00601212,1950.8,1949.7,6.80407281]
[1772549642753,0.25636,1950.7,1949.7,6.80407281]
[1772549643155,6.98932975,1950.5,1949.6,0.00660808]
[1772549643359,0.25641,1950.3,1949.4,6.80407281]
[1772549643755,0.25641,1950.3,1949.0,6.80407281]
[1772549643756,13.79269886,1949.9,1949.0,6.80407281]
[1772549643961,20.51669886,1949.9,1949.0,6.80407281]
[1772549644262,6.67650448,1949.8,1949.0,6.80407281]
[1772549644458,6.67650448,1949.8,1949.0,6.80767137]
[1772549644864,0.25649,1949.7,1949.0,6.80767137]
[1772549645566,0.25643,1950.2,1949.0,6.80767137]
[1772549645866,6.94328139,1950.2,1949.0,6.80767137]
[1772549646058,0.25645,1950.0,1949.0,6.80767137]
[1772549646268,0.25647,1949.8,1949.0,6.80767137]
[1772549646566,6.94261289,1949.8,1949.0,6.80767137]
[1772549647261,6.69389354,1949.7,1949.0,6.80767137]
[1772549647463,6.95039354,1949.6,1949.0,0.00359856]
[1772549647662,0.25656,1949.2,1948.7,6.80407281]
[1772549647860,0.25656,1949.2,1948.3,6.80407281]
[1772549648068,6.98056,1949.2,1948.3,6.80407281]
[1772549648268,6.69389354,1949.1,1948.3,6.80407281]
[1772549648663,0.00615365,1949.1,1948.3,6.80780381]
[1772549649059,6.70513637,1949.1,1948.3,6.80780381]
[1772549649468,6.70513637,1949.1,1948.4,6.80407281]
[1772549651068,7.48372886,1949.0,1948.3,0.003731]
[1772549651372,6.69898272,1948.9,1948.3,6.80780381]
[1772549651567,6.69898272,1948.8,1948.3,6.80780381]
[1772549651763,0.25658,1949.0,1948.3,6.80780381]
[1772549651968,7.48375886,1948.8,1947.8,6.80407281]
[1772549652168,4.19551069,1949.1,1948.0,6.80407281]
[1772549652369,7.48373886,1948.9,1947.9,6.725]
[1772549652568,7.48373886,1948.9,1947.9,6.80407281]
[1772549652569,7.22714886,1948.7,1947.9,6.80407281]
[1772549652871,8.05606229,1948.6,1947.9,6.80790686]
[1772549653169,7.22714886,1948.1,1947.3,6.80407281]
[1772549653472,6.725,1948.1,1947.3,6.80407281]
[1772549654063,6.725,1948.1,1947.3,6.80866406]
[1772549654263,7.48385886,1948.0,1947.3,6.80866406]
[1772549654470,0.56577684,1947.9,1947.3,0.00459125]
[1772549654682,7.48389886,1947.7,1947.0,6.80407281]
[1772549654971,7.48389886,1947.7,1945.8,0.25699]
[1772549654972,0.25678,1947.5,1946.6,6.80407281]
[1772549655171,0.25678,1947.5,1946.7,6.80407281]
[1772549655368,7.48392886,1947.5,1945.9,6.80407281]
[1772549655570,7.48809688,1947.5,1946.1,6.80407281]
[1772549655768,0.00416802,1947.5,1946.1,6.80407281]
[1772549655964,0.00416802,1947.5,1946.3,6.80407281]
[1772549656164,6.98172,1948.0,1946.5,6.80407281]
[1772549656373,0.25665,1948.5,1946.7,6.80407281]
[1772549656868,0.25665,1948.5,1946.9,6.80407281]
[1772549656869,7.48379886,1948.5,1946.9,6.80407281]
[1772549657076,7.48986401,1948.5,1947.1,6.80407281]
[1772549657668,7.23321401,1948.5,1947.1,6.80407281]
[1772549657979,7.08512993,1949.2,1947.5,6.76340583]
[1772549658271,6.98351,1949.6,1947.9,6.76340583]
[1772549658465,7.08512993,1949.5,1948.1,6.76340583]
[1772549658670,7.08512993,1949.4,1948.2,6.76340583]
[1772549658968,0.00402118,1949.4,1948.2,6.76807004]
[1772549659168,0.00402118,1949.4,1948.4,6.78338214]
[1772549659564,0.00402118,1949.4,1948.2,0.00466421]
[1772549659565,0.00402118,1949.4,1948.6,6.78338214]
[1772549660371,0.00402118,1949.4,1948.8,6.78338214]
[1772549660669,0.00402118,1949.4,1948.8,13.51038214]
[1772549661467,6.727,1950.0,1948.9,6.78338214]
[1772549661666,7.54854926,1950.1,1948.9,6.78338214]
[1772549661873,7.29210926,1950.1,1948.9,6.78338214]
[1772549662068,7.29210926,1950.7,1948.9,7.03996214]
[1772549662374,7.29210926,1951.0,1949.2,6.78338214]
[1772549662574,7.29862829,1951.0,1949.4,6.78338214]
[1772549663270,0.00651903,1951.0,1949.6,6.78338214]
[1772549663469,0.00651903,1951.0,1949.8,6.78338214]
[1772549663672,7.29210926,1951.9,1950.3,6.78338214]
[1772549663877,7.29210926,1952.1,1950.9,6.78338214]
[1772549664071,7.29210926,1952.1,1951.1,6.78338214]
[1772549664371,7.29210926,1951.5,1950.5,6.726]
[1772549664577,7.29615923,1951.5,1950.5,0.00400942]
[1772549664871,7.29210926,1951.3,1950.5,0.00400942]
[1772549665276,0.00404997,1951.5,1950.5,6.78739156]
[1772549665971,0.00404997,1951.5,1950.7,6.78338214]
[1772549666173,0.93460493,1952.4,1950.9,6.78338214]
[1772549666378,0.93460493,1952.4,1951.3,6.78338214]
[1772549666578,0.93460493,1952.4,1951.5,6.78338214]
[1772549666876,0.93460493,1952.4,1951.6,13.50738214]
[1772549667077,0.93460493,1952.4,1951.7,13.50738214]
[1772549667271,6.29893,1953.1,1950.7,6.30622]
[1772549667272,7.29210926,1953.1,1951.9,6.78338214]
[1772549667467,7.29210926,1953.1,1951.7,6.78338214]
[1772549667468,7.29210926,1952.9,1951.7,6.78338214]
[1772549668077,7.29210926,1952.3,1951.4,6.78338214]
[1772549668272,7.29210926,1952.1,1951.4,0.00465902]
[1772549668476,0.25619,1952.0,1951.4,0.00465902]
[1772549668779,7.29210926,1951.7,1950.5,6.78338214]
[1772549668980,7.29210926,1951.6,1950.5,6.78338214]
[1772549669680,7.29210926,1952.2,1950.7,6.78338214]
[1772549669881,7.29210926,1952.2,1950.9,6.78338214]
[1772549670084,7.29210926,1952.1,1950.9,6.78338214]
[1772549670381,6.722,1952.2,1950.9,6.78338214]
[1772549670582,7.29210926,1952.1,1951.1,6.78338214]
[1772549671282,7.29210926,1952.1,1950.8,13.50438214]
[1772549671477,7.29210926,1952.1,1950.9,6.78338214]
[1772549672281,7.29210926,1952.0,1950.6,6.78338214]
[1772549672482,7.29210926,1951.4,1950.5,0.00593775]
[1772549672682,7.29210926,1951.2,1950.5,0.00593775]
[1772549673077,7.29210926,1951.2,1950.0,6.78338214]
[1772549674077,7.29210926,1951.2,1950.0,6.78896872]
[1772549674278,7.29210926,1951.2,1950.0,0.00558658]
[1772549674279,7.29210926,1950.8,1950.0,0.00558658]
[1772549674473,7.29210926,1950.6,1950.0,6.58e-06]
[1772549675280,7.29210926,1951.0,1950.0,6.58e-06]
[1772549675480,7.29210926,1951.2,1950.0,6.78338872]
[1772549675881,7.29210926,1951.2,1950.0,6.58e-06]
[1772549676485,7.29210926,1951.0,1950.0,6.58e-06]
[1772549676684,7.29210926,1951.1,1950.0,6.58e-06]
[1772549678588,7.29210926,1951.0,1950.0,6.58e-06]
[1772549678785,7.29210926,1950.8,1950.0,6.58e-06]
[1772549679684,0.00553635,1951.2,1950.2,6.78338214]
[1772549679883,0.00553635,1951.2,1950.4,6.78338214]
[1772549680383,7.29764561,1951.2,1950.4,6.78338214]
[1772549680589,7.29210926,1951.1,1950.0,6.58e-06]
[1772549680978,7.29210926,1950.7,1950.0,6.58e-06]
[1772549681185,7.29210926,1950.6,1950.0,6.58e-06]
[1772549681486,7.29210926,1950.5,1949.1,6.78338214]
[1772549681688,7.29210926,1950.1,1948.8,6.78338214]
[1772549681883,7.29210926,1949.9,1948.8,6.78338214]
[1772549682188,7.29210926,1949.9,1947.6,6.31622]
[1772549682189,7.29210926,1949.9,1948.6,6.78338214]
[1772549682389,7.29210926,1949.5,1948.6,0.00624793]
[1772549682588,14.01210926,1949.4,1948.6,6.78963007]
[1772549682786,6.30684,1950.6,1948.6,6.78963007]
[1772549682787,7.54842926,1951.0,1949.4,6.78338214]
[1772549683086,7.29210926,1951.0,1949.5,7.03989214]
[1772549683593,7.29210926,1950.8,1949.5,6.78338214]
[1772549683889,7.29210926,1952.0,1950.6,6.78338214]
[1772549684191,7.29210926,1952.0,1950.2,3.2391766]
[1772549684192,7.29210926,1952.4,1951.0,6.78338214]
[1772549684390,7.29210926,1952.2,1951.0,6.78338214]
[1772549684792,0.00618023,1952.2,1951.0,6.78736935]
[1772549685290,14.01210926,1953.3,1951.6,6.78338214]
[1772549685490,7.29210926,1953.2,1951.8,6.78338214]
[1772549686194,0.00415208,1953.2,1952.2,6.78338214]
[1772549686495,7.29626134,1953.2,1952.2,6.78338214]
[1772549686691,7.29210926,1953.1,1951.9,6.78338214]
[1772549688587,7.29210926,1953.1,1951.1,6.77828268]
[1772549688588,6.96034135,1952.7,1951.1,6.77828268]
[1772549688792,6.96034135,1952.5,1951.1,6.77828268]
[1772549689495,13.67834135,1953.1,1951.8,6.77828268]
[1772549689693,6.96034135,1953.0,1951.8,6.77828268]
[1772549690096,6.72215208,1953.2,1951.9,6.77828268]
[1772549690297,0.00415208,1953.2,1952.1,6.77828268]
[1772549690496,0.00415208,1953.2,1952.0,6.55843]
[1772549690497,0.00415208,1953.2,1952.3,6.77828268]
[1772549690692,6.717,1953.5,1952.3,6.77828268]
[1772549690898,6.717,1953.5,1952.4,6.77828268]
[1772549691297,13.67734135,1953.5,1952.4,6.77828268]
[1772549691494,6.96034135,1953.4,1952.1,6.77828268]
[1772549691699,6.96530106,1953.4,1952.1,0.00368478]
[1772549692202,6.96034135,1953.2,1952.1,6.78196746]
[1772549692695,0.00495971,1953.4,1952.1,6.78196746]
[1772549692696,0.00495971,1953.4,1952.3,6.77828268]
[1772549692896,6.96530106,1953.4,1952.1,6.78196746]
[1772549693097,6.96034135,1953.2,1952.1,0.00368478]
[1772549693295,6.96034135,1952.6,1951.1,6.77828268]
[1772549693493,13.67634135,1952.5,1951.1,6.77828268]
[1772549693704,6.96034135,1952.5,1951.3,6.77828268]
[1772549694398,6.96034135,1952.5,1951.5,6.77828268]
[1772549694597,6.715,1952.8,1951.5,6.77828268]
[1772549694797,6.96034135,1952.7,1951.4,6.77828268]
[1772549695603,6.96034135,1953.0,1951.8,6.77828268]
[1772549696800,6.96034135,1953.3,1952.0,6.77828268]
[1772549697004,6.96034135,1953.3,1952.2,6.77828268]
[1772549698608,6.96034135,1953.3,1952.3,6.77828268]
[1772549699107,0.00495971,1953.4,1952.3,6.77828268]
[1772549699308,6.96530106,1953.4,1952.3,6.77828268]
[1772549699505,0.00495971,1953.4,1952.5,6.77828268]
[1772549699702,0.01096078,1953.7,1952.7,6.77828268]
[1772549699907,0.01096078,1953.7,1952.8,6.77828268]
[1772549700111,0.01096078,1953.7,1952.7,6.714]
[1772549700112,6.97130213,1953.7,1952.6,0.25611]
[1772549700404,0.01096078,1953.7,1952.5,7.03439268]
[1772549700607,0.01096078,1953.7,1952.0,3.2391766]
[1772549700608,6.96034135,1955.1,1953.6,6.77828268]
[1772549700910,6.96034135,1955.0,1953.8,6.77828268]
[1772549701304,6.96034135,1953.4,1952.0,6.77828268]
[1772549701501,6.96034135,1953.4,1952.2,6.77828268]
[1772549701910,6.96034135,1953.2,1952.0,6.77828268]
[1772549702106,6.96034135,1952.8,1951.3,6.77828268]
[1772549702311,6.96034135,1952.2,1950.8,6.77828268]
[1772549702605,13.67334135,1952.2,1951.0,6.77828268]
[1772549703001,7.21653135,1952.0,1950.9,0.00583853]
[1772549703200,7.21657135,1951.7,1950.9,0.00583853]
[1772549703508,7.21657135,1951.7,1950.1,6.77828268]
[1772549703509,6.96034135,1951.4,1950.1,6.77828268]
[1772549703706,6.96034135,1951.1,1949.8,6.77828268]
[1772549704006,6.96034135,1950.9,1949.8,6.77828268]
[1772549704207,6.713,1951.1,1949.8,6.77828268]
[1772549704402,0.00470469,1951.1,1949.8,6.7828791]
[1772549704606,0.00470469,1951.1,1950.0,6.77828268]
[1772549704803,6.96034135,1951.8,1950.1,6.77828268]
[1772549705008,6.96034135,1952.1,1950.4,6.77828268]
[1772549705208,6.96034135,1952.1,1950.6,6.77828268]
[1772549705511,13.01469,1952.2,1950.6,6.77828268]
[1772549705512,6.96034135,1951.9,1950.6,6.77828268]
[1772549705709,6.30423,1951.4,1950.1,6.77828268]
[1772549706011,6.96034135,1951.2,1950.1,6.77828268]
[1772549706209,6.96034135,1951.7,1950.1,6.77828268]
[1772549706601,6.96034135,1951.7,1950.2,6.77828268]
[1772549706808,0.00410851,1951.9,1950.4,13.08542268]
[1772549707108,0.00410851,1951.9,1950.5,6.77828268]
[1772549707410,6.96034135,1951.8,1950.5,6.77828268]
[1772549707605,0.00410851,1951.9,1950.5,6.77828268]
[1772549708009,6.96444986,1951.9,1950.6,13.49228268]
[1772549708210,6.96034135,1951.8,1950.3,13.49228268]
[1772549708404,6.96034135,1951.6,1950.3,6.77828268]
[1772549708802,6.96034135,1951.5,1950.3,6.77828268]
[1772549709006,6.96034135,1951.5,1950.3,13.49328268]
[1772549709204,6.96034135,1951.5,1950.4,6.77828268]
[1772549709608,6.96034135,1951.8,1950.4,6.77828268]
[1772549710216,6.96034135,1951.8,1950.6,6.77828268]
[1772549710720,0.00410851,1951.9,1950.6,13.34146268]
[1772549710913,0.00410851,1951.9,1950.5,13.02212]
[1772549710914,6.96034135,1951.7,1950.7,6.77828268]
[1772549711512,0.00410851,1951.9,1950.9,6.77828268]
[1772549711708,0.00410851,1951.9,1950.9,13.49328268]
[1772549711709,6.96444986,1951.9,1950.9,13.49328268]
[1772549711916,6.96034135,1952.5,1951.0,6.77828268]
[1772549712115,6.96034135,1952.5,1951.1,7.03458268]
[1772549712313,6.96034135,1952.8,1951.2,6.77828268]
[1772549712712,6.96034135,1952.8,1951.6,6.77828268]
[1772549712913,0.25605,1953.1,1951.8,6.77828268]
[1772549712914,7.21639135,1953.1,1951.8,6.77828268]
[1772549713219,6.96034135,1953.4,1952.0,6.77828268]
[1772549713516,6.96034135,1953.4,1952.2,6.77828268]
[1772549713710,13.51455135,1953.3,1951.8,6.77828268]
[1772549713918,6.96034135,1953.1,1951.8,6.77828268]
[1772549714217,6.96460521,1953.1,1951.9,6.77828268]
[1772549714517,6.96034135,1952.9,1951.6,6.78249119]
[1772549714712,6.96034135,1952.9,1951.7,7.03451268]
[1772549714913,0.00426386,1953.1,1951.7,7.03451268]
[1772549715211,6.96460521,1953.1,1951.9,6.77828268]
[1772549715417,7.22065521,1953.1,1951.9,6.77828268]
[1772549715612,6.96460521,1953.1,1951.9,6.77828268]
[1772549716216,6.96034135,1952.9,1951.6,6.78249119]
[1772549716516,6.29907,1953.0,1951.6,6.78249119]